bitfinex-derivatives/quotes_BTCF0:USTF0_20241208
["timestamp","ask_amount","ask_price","bid_price","bid_amount"]
[1733619062279,0.1276396,99918.0,99917.0,0.034995]
[1733619063085,0.037995,99918.0,99917.0,0.034995]
[1733619063297,0.1276396,99918.0,99917.0,0.034995]
[1733619064185,0.037995,99918.0,99917.0,0.03812185]
[1733619066286,0.037995,99918.0,99917.0,0.27770962]
[1733619067296,0.037995,99918.0,99917.0,0.03812185]
[1733619067886,0.037995,99918.0,99917.0,0.27761192]
[1733619068086,0.037995,99918.0,99917.0,0.03812185]
[1733619068499,0.037995,99918.0,99917.0,0.27769868]
[1733619069199,0.037995,99918.0,99917.0,0.03812185]
[1733619069599,0.035995,99918.0,99917.0,0.03812185]
[1733619069795,0.003,99918.0,99917.0,0.034995]
[1733619070098,0.003,99918.0,99917.0,0.03812194]
[1733619070291,0.003,99918.0,99917.0,0.30262194]
[1733619070292,0.002,99918.0,99917.0,0.30262194]
[1733619070492,0.003,99918.0,99917.0,0.67628417]
[1733619070893,0.001,99918.0,99917.0,0.67628417]
[1733619071095,0.003,99918.0,99917.0,0.33761694]
[1733619071300,0.003,99918.0,99917.0,0.03812194]
[1733619071495,0.001,99918.0,99917.0,0.03812194]
[1733619071702,0.003,99918.0,99917.0,0.03812194]
[1733619072609,0.037995,99918.0,99917.0,0.03812194]
[1733619073108,0.037995,99918.0,99917.0,0.03812177]
[1733619073693,0.036995,99918.0,99917.0,0.03812177]
[1733619075795,0.035995,99918.0,99917.0,0.03812177]
[1733619075996,0.036995,99918.0,99917.0,0.03812177]
[1733619076197,0.035995,99918.0,99917.0,0.03812177]
[1733619076396,0.036995,99918.0,99917.0,0.03812177]
[1733619079317,0.036995,99918.0,99917.0,0.03812184]
[1733619080914,0.002,99918.0,99917.0,0.03812184]
[1733619083015,0.002,99918.0,99917.0,0.03812185]
[1733619084219,0.15178479,99918.0,99917.0,0.03812185]
[1733619084416,0.002,99918.0,99917.0,0.03812185]
[1733619084915,0.15178479,99918.0,99917.0,0.03812185]
[1733619085115,0.002,99918.0,99917.0,0.03812185]
[1733619085622,0.15178479,99918.0,99917.0,0.03812185]
[1733619086319,0.002,99918.0,99917.0,0.37475803]
[1733619089417,0.002,99918.0,99917.0,1.14071311]
[1733619091116,0.002,99918.0,99917.0,1.13987551]
[1733619092126,0.002,99918.0,99917.0,0.73525372]
[1733619092320,0.002,99918.0,99917.0,1.13984167]
[1733619092515,0.002,99918.0,99917.0,0.73525372]
[1733619093117,0.002,99918.0,99917.0,0.37445372]
[1733619093828,0.002,99918.0,99917.0,0.77886048]
[1733619094121,0.11994885,99934.0,99933.0,0.03499]
[1733619094122,0.08996163,99934.0,99933.0,0.03499]
[1733619094319,0.08996163,99934.0,99920.0,0.3965]
[1733619094320,0.04862769,99934.0,99928.0,0.3608]
[1733619094520,0.22855758,99933.0,99929.0,0.0031263]
[1733619094714,0.22855758,99933.0,99932.0,0.03499]
[1733619094715,0.17993002,99933.0,99932.0,0.03499]
[1733619095117,0.04862758,99933.0,99928.0,0.3608]
[1733619095314,0.17993002,99933.0,99928.0,0.3608]
[1733619095515,0.2285576,99933.0,99932.0,0.03499]
[1733619095917,0.2285576,99933.0,99932.0,0.03811619]
[1733619096115,0.2335576,99933.0,99932.0,0.03811619]
[1733619096421,0.23351133,99933.0,99932.0,0.03811619]
[1733619096619,0.23351133,99933.0,99932.0,0.03811631]
[1733619096824,0.23351335,99933.0,99932.0,0.03811631]
[1733619097021,0.05362758,99933.0,99932.0,0.03811631]
[1733619097225,0.005,99933.0,99932.0,0.03811631]
[1733619098517,0.12485108,99933.0,99932.0,0.03811631]
[1733619099229,0.005,99933.0,99932.0,0.03811631]
[1733619101322,0.005,99933.0,99932.0,0.33802032]
[1733619102325,0.005,99933.0,99932.0,0.03811631]
[1733619102529,0.005,99933.0,99932.0,0.37064903]
[1733619104729,0.003,99933.0,99932.0,0.37064903]
[1733619105337,0.00012878,99940.0,99939.0,0.034988]
[1733619105630,0.00012878,99940.0,99939.0,0.39891431]
[1733619106526,0.00212878,99940.0,99939.0,0.39891431]
[1733619106935,0.00212878,99940.0,99939.0,0.39891386]
[1733619107832,0.00312878,99940.0,99939.0,0.39891386]
[1733619109532,0.00112878,99940.0,99939.0,0.39891386]
[1733619109745,0.00112878,99940.0,99939.0,0.40191386]
[1733619110529,0.00012878,99940.0,99939.0,0.40191386]
[1733619110726,0.00012878,99940.0,99939.0,0.40391386]
[1733619113239,0.00012878,99940.0,99939.0,0.64288753]
[1733619113440,0.00012878,99940.0,99939.0,0.40391402]
[1733619114043,0.00012878,99940.0,99939.0,0.28208769]
[1733619114342,0.00012878,99940.0,99939.0,0.04311402]
[1733619115341,0.034986,99944.0,99943.0,0.034986]
[1733619115542,0.034986,99944.0,99943.0,0.03811202]
[1733619116738,0.034986,99944.0,99943.0,0.034986]
[1733619117040,0.034986,99944.0,99943.0,0.03811204]
[1733619117240,0.15483708,99944.0,99943.0,0.03811204]
[1733619117546,0.11985108,99944.0,99943.0,0.03811204]
[1733619118226,0.0636,99946.0,99945.0,0.034986]
[1733619118431,0.0636,99946.0,99945.0,0.03811204]
[1733619119436,0.0646,99946.0,99945.0,0.03811204]
[1733619120037,0.0646,99946.0,99945.0,0.034986]
[1733619120238,0.0646,99946.0,99945.0,0.03811196]
[1733619123238,0.099585,99946.0,99945.0,0.03811196]
[1733619126238,0.099585,99946.0,99945.0,0.67469645]
[1733619127146,0.099585,99946.0,99945.0,0.37568616]
[1733619127741,0.0646,99946.0,99945.0,0.37568616]
[1733619131437,0.11321836,99946.0,99945.0,0.03811196]
[1733619131838,0.11321836,99946.0,99945.0,0.04311338]
[1733619135652,0.04961836,99946.0,99945.0,0.034986]
[1733619135849,0.04961836,99946.0,99945.0,0.04311336]
[1733619139347,0.21587077,99946.0,99945.0,0.04311336]
[1733619139549,0.035985,99946.0,99945.0,0.37960713]
[1733619141463,0.035985,99946.0,99945.0,0.34286512]
[1733619141649,0.035985,99946.0,99945.0,0.37955798]
[1733619142350,0.035985,99946.0,99945.0,0.67117112]
[1733619142652,0.035985,99946.0,99945.0,0.67927551]
[1733619142851,0.035985,99946.0,99945.0,0.37952895]
[1733619144053,0.035985,99946.0,99945.0,0.37452734]
[1733619145048,0.035985,99946.0,99945.0,0.33954134]
[1733619145348,0.035985,99946.0,99945.0,0.003126]
[1733619145549,0.18597738,99946.0,99945.0,0.004646]
[1733619145745,0.08461033,99946.0,99945.0,0.18455974]
[1733619145946,0.08461033,99946.0,99945.0,0.18956186]
[1733619146245,0.08461054,99946.0,99945.0,0.00964812]
[1733619146454,0.035985,99946.0,99925.0,0.03649304]
[1733619146650,0.034992,99926.0,99925.0,0.03649304]
[1733619146957,0.035152,99926.0,99925.0,0.04149552]
[1733619147160,0.18502859,99926.0,99925.0,0.04149552]
[1733619147549,0.18502859,99926.0,99925.0,0.04549552]
[1733619147856,0.18502859,99926.0,99925.0,0.05349552]
[1733619147857,0.036152,99926.0,99925.0,0.05349552]
[1733619148649,0.035152,99926.0,99925.0,0.04549552]
[1733619148850,0.035152,99926.0,99925.0,0.04949552]
[1733619149052,0.035152,99926.0,99925.0,0.04749552]
[1733619149253,0.035152,99926.0,99925.0,0.04749551]
[1733619149660,0.00016,99926.0,99925.0,0.04749551]
[1733619152561,0.00016,99926.0,99925.0,0.0474954]
[1733619154151,0.11992632,99926.0,99925.0,0.0474954]
[1733619154359,0.00016,99926.0,99925.0,0.0474954]
[1733619154559,0.00016,99926.0,99925.0,0.38446652]
[1733619155664,0.01011979,99926.0,99925.0,0.38446652]
[1733619155963,0.00016,99926.0,99925.0,0.38446652]
[1733619156366,0.00016,99926.0,99925.0,0.37946416]
[1733619156555,0.00016,99926.0,99925.0,0.68351777]
[1733619156757,0.035152,99926.0,99925.0,0.68351777]
[1733619157256,0.035152,99926.0,99925.0,0.34654665]
[1733619157452,0.035152,99926.0,99925.0,0.68327934]
[1733619157660,0.035152,99926.0,99925.0,0.34654665]
[1733619157861,0.04527618,99926.0,99925.0,0.34654665]
[1733619158063,0.04527618,99926.0,99925.0,0.6833833]
[1733619158258,0.04527618,99926.0,99925.0,0.34654665]
[1733619158459,0.04527618,99926.0,99925.0,0.0506219]
[1733619160278,0.08313245,99935.0,99925.0,0.0506219]
[1733619160469,0.03499,99931.0,99930.0,0.23920495]
[1733619160776,0.08313245,99935.0,99934.0,0.00032]
[1733619160777,0.0650832,99935.0,99934.0,0.00032]
[1733619160973,0.04504529,99935.0,99934.0,0.00844886]
[1733619161167,0.01005629,99935.0,99934.0,0.28240281]
[1733619161375,0.45062476,99944.0,99934.0,0.00820886]
[1733619161376,0.06309454,99944.0,99934.0,0.00820886]
[1733619161677,0.3608,99941.0,99939.0,0.17936924]
[1733619161873,0.034987,99940.0,99939.0,0.17936924]
[1733619162072,0.034987,99940.0,99939.0,0.00812857]
[1733619162264,0.034987,99940.0,99939.0,0.18752001]
[1733619162463,0.034987,99940.0,99939.0,0.18751916]
[1733619162668,0.034987,99940.0,99939.0,0.00812857]
[1733619163767,0.034988,99939.0,99938.0,0.034988]
[1733619163991,0.034988,99939.0,99938.0,0.04311641]
[1733619164294,0.035148,99939.0,99938.0,0.04311641]
[1733619165284,0.036148,99939.0,99938.0,0.04311641]
[1733619166091,0.037148,99939.0,99938.0,0.04311628]
[1733619167894,0.00216,99939.0,99938.0,0.04311628]
[1733619168896,0.00216,99939.0,99938.0,0.37588273]
[1733619169493,0.00216,99939.0,99938.0,0.37588206]
[1733619169690,0.12092635,99939.0,99938.0,0.04311561]
[1733619170691,0.11992635,99939.0,99938.0,0.04511561]
[1733619171091,0.11992635,99939.0,99938.0,0.04611561]
[1733619171599,0.11992635,99939.0,99938.0,0.04411561]
[1733619171793,0.11992635,99939.0,99938.0,0.04511561]
[1733619171999,0.00016,99939.0,99938.0,0.04511561]
[1733619172195,0.00016,99939.0,99938.0,0.04411561]
[1733619172498,0.00016,99939.0,99938.0,0.04511561]
[1733619173701,0.00016,99939.0,99938.0,0.04611561]
[1733619174195,0.00016,99939.0,99938.0,0.04411561]
[1733619174491,0.00016,99939.0,99938.0,0.04511561]
[1733619175094,0.00016,99939.0,99938.0,0.04611561]
[1733619175701,0.00016,99939.0,99938.0,0.04511561]
[1733619175902,0.00016,99939.0,99938.0,0.04411561]
[1733619176401,0.035148,99939.0,99938.0,0.04411561]
[1733619176695,0.035148,99939.0,99938.0,0.00912761]
[1733619177092,0.035148,99939.0,99938.0,0.00812761]
[1733619177292,0.035148,99939.0,99938.0,0.01012761]
[1733619177699,0.035148,99939.0,99938.0,0.00812761]
[1733619178591,0.035148,99939.0,99938.0,0.04311561]
[1733619179389,0.035148,99939.0,99938.0,0.034988]
[1733619179590,0.035148,99939.0,99938.0,0.04311618]
[1733619180295,0.00016,99939.0,99938.0,0.04311618]
[1733619181900,0.00016,99939.0,99938.0,0.40564007]
[1733619182801,0.00016,99939.0,99938.0,0.40664007]
[1733619182996,0.00016,99939.0,99938.0,0.73904197]
[1733619183199,0.00016,99939.0,99938.0,0.7391912]
[1733619183400,0.00016,99939.0,99938.0,0.43991808]
[1733619183603,0.00016,99939.0,99938.0,0.74118216]
[1733619183788,0.00016,99939.0,99938.0,0.44191808]
[1733619184105,0.00016,99939.0,99938.0,0.44191363]
[1733619184700,0.00016,99939.0,99938.0,0.28907464]
[1733619185001,0.00016,99939.0,99938.0,0.28094646]
[1733619185193,0.00016,99939.0,99938.0,0.2880743]
[1733619185397,0.00016,99939.0,99938.0,0.28907432]
[1733619185993,0.00016,99939.0,99938.0,0.25857432]
[1733619186199,0.00016,99939.0,99938.0,0.07901586]
[1733619186392,0.00016,99939.0,99938.0,0.25857432]
[1733619186801,0.00016,99939.0,99938.0,0.07901586]
[1733619188294,0.00016,99939.0,99938.0,0.25857432]
[1733619188490,0.00016,99939.0,99938.0,0.07901588]
[1733619189599,0.00016,99939.0,99938.0,0.25857434]
[1733619190304,0.00016,99939.0,99938.0,0.25863285]
[1733619190500,0.00016,99939.0,99938.0,0.07901588]
[1733619191688,0.00016,99939.0,99938.0,0.41181587]
[1733619193496,0.00016,99939.0,99938.0,0.77170069]
[1733619193695,0.00016,99939.0,99938.0,0.41181587]
[1733619194500,0.00016,99939.0,99938.0,0.77170069]
[1733619194896,0.00016,99939.0,99938.0,0.43890055]
[1733619195197,0.00016,99939.0,99938.0,0.77146137]
[1733619195799,0.00016,99939.0,99938.0,0.41157655]
[1733619196299,0.00016,99939.0,99938.0,0.77082752]
[1733619196695,0.00016,99939.0,99938.0,0.41157655]
[1733619197497,0.00016,99939.0,99938.0,0.77087029]
[1733619198108,0.00016,99939.0,99938.0,0.41057655]
[1733619198414,0.00016,99939.0,99938.0,0.41157626]
[1733619199002,0.00016,99939.0,99938.0,0.77087573]
[1733619199405,0.00016,99939.0,99938.0,0.41157626]
[1733619199711,0.00016,99939.0,99938.0,0.7708709]
[1733619200109,0.00016,99939.0,99938.0,0.41157631]
[1733619200405,0.00016,99939.0,99938.0,0.37867631]
[1733619200606,0.00016,99939.0,99938.0,0.77438731]
[1733619200809,0.00016,99939.0,99938.0,0.37867631]
[1733619201402,0.00016,99939.0,99938.0,0.73787447]
[1733619201605,0.00016,99939.0,99938.0,0.73788014]
[1733619201908,0.00016,99939.0,99938.0,0.73788028]
[1733619202412,0.00016,99939.0,99938.0,0.37867645]
[1733619202917,0.00016,99939.0,99938.0,0.73788028]
[1733619203514,0.00016,99939.0,99938.0,0.37867645]
[1733619203709,0.035148,99939.0,99938.0,0.3781981]
[1733619204215,0.035148,99939.0,99938.0,0.3432101]
[1733619204216,0.12509803,99939.0,99938.0,0.3432101]
[1733619204508,0.035148,99939.0,99938.0,0.01112763]
[1733619204916,0.066148,99939.0,99938.0,0.01112763]
[1733619205111,0.066148,99939.0,99938.0,0.01112878]
[1733619205310,0.1861155,99939.0,99938.0,0.01112878]
[1733619205619,0.066148,99939.0,99938.0,0.250663]
[1733619206120,0.066148,99939.0,99938.0,0.0061265]
[1733619206415,0.03116,99939.0,99936.0,0.2394799]
[1733619206617,0.034988,99937.0,99936.0,0.2394799]
[1733619206811,0.034988,99937.0,99925.0,0.35920383]
[1733619206812,0.034992,99926.0,99925.0,0.17959215]
[1733619207013,0.14990835,99930.0,99925.0,0.18459492]
[1733619207311,0.14990835,99930.0,99921.0,0.034994]
[1733619207312,0.00016,99926.0,99924.0,0.17959215]
[1733619207613,0.035152,99926.0,99925.0,0.17956964]
[1733619207914,0.034993,99924.0,99923.0,0.2394799]
[1733619208116,0.034993,99924.0,99923.0,0.24448269]
[1733619208619,0.034994,99922.0,99921.0,0.034994]
[1733619208814,0.034994,99922.0,99921.0,0.03999677]
[1733619209013,0.035154,99922.0,99921.0,0.03999677]
[1733619209810,0.036154,99922.0,99921.0,0.04499677]
[1733619210312,0.036154,99922.0,99921.0,0.0449968]
[1733619210704,0.00116,99922.0,99921.0,0.0449968]
[1733619210911,0.00116,99922.0,99921.0,0.04499686]
[1733619211110,0.00116,99922.0,99921.0,0.22449369]
[1733619211312,0.00116,99922.0,99921.0,0.04499686]
[1733619211511,0.00116,99922.0,99921.0,0.04799686]
[1733619211907,0.0111449,99922.0,99921.0,0.04799686]
[1733619212116,0.00116,99922.0,99921.0,0.22749369]
[1733619212308,0.00116,99922.0,99921.0,0.04799686]
[1733619212612,0.00116,99922.0,99921.0,0.28747676]
[1733619212812,0.00116,99922.0,99921.0,0.04799686]
[1733619214714,0.00116,99922.0,99921.0,0.77844883]
[1733619214920,0.15297742,99940.0,99934.0,0.034989]
[1733619215111,0.15297742,99940.0,99934.0,0.03999186]
[1733619215412,0.15297742,99940.0,99934.0,0.04007186]
[1733619215811,0.01000996,99935.0,99934.0,0.04007186]
[1733619216111,0.06309454,99940.0,99939.0,0.034988]
[1733619216112,0.08988288,99940.0,99939.0,0.034988]
[1733619216314,0.08988288,99940.0,99939.0,0.03999086]
[1733619216315,0.00991973,99940.0,99939.0,0.03999086]
[1733619216507,0.08987972,99941.0,99940.0,0.034987]
[1733619216704,0.08987972,99941.0,99940.0,0.03998986]
[1733619216919,0.08987972,99941.0,99940.0,0.04006986]
[1733619217308,0.08987755,99941.0,99940.0,0.21945038]
[1733619217817,0.12486431,99942.0,99941.0,0.034987]
[1733619218008,0.034987,99942.0,99941.0,0.03998986]
[1733619218203,0.124861,99942.0,99941.0,0.04006986]
[1733619218408,0.12486149,99942.0,99941.0,0.04319497]
[1733619218709,0.034987,99942.0,99941.0,0.04319497]
[1733619218910,0.04509334,99942.0,99941.0,0.04319497]
[1733619219213,0.04509334,99942.0,99941.0,0.28237085]
[1733619219611,0.04509334,99942.0,99941.0,0.04319497]
[1733619220205,0.04509334,99942.0,99941.0,0.04419497]
[1733619221514,0.04509334,99942.0,99941.0,0.00920797]
[1733619221718,0.04509334,99942.0,99941.0,0.00920805]
[1733619222012,0.19500169,99942.0,99941.0,0.00920805]
[1733619222213,0.19500169,99942.0,99941.0,0.00420617]
[1733619222411,0.19500169,99942.0,99941.0,0.00320617]
[1733619222612,0.09371641,99942.0,99941.0,0.00108]
[1733619223012,0.25604465,99942.0,99941.0,8e-05]
[1733619223207,0.12591641,99942.0,99941.0,8e-05]
[1733619223708,0.12691641,99942.0,99922.0,0.21433088]
[1733619223915,0.12487225,99923.0,99922.0,0.034994]
[1733619224122,0.034993,99923.0,99922.0,0.03812074]
[1733619225208,0.034993,99923.0,99922.0,0.04112074]
[1733619225408,0.034993,99923.0,99922.0,0.037994]
[1733619225607,0.034993,99923.0,99922.0,0.04112082]
[1733619225913,0.034993,99923.0,99922.0,0.00612682]
[1733619226317,0.395793,99923.0,99922.0,0.00612682]
[1733619226514,0.395793,99923.0,99922.0,0.01112682]
[1733619226719,0.395793,99923.0,99922.0,0.008]
[1733619227121,0.43779809,99923.0,99922.0,0.008]
[1733619227421,0.58758369,99923.0,99922.0,0.008]
[1733619227728,0.43779809,99923.0,99922.0,0.008]
[1733619227923,0.58758369,99923.0,99922.0,0.008]
[1733619228820,0.43779809,99923.0,99922.0,0.24711584]
[1733619229018,0.43779809,99923.0,99922.0,0.24729603]
[1733619229213,0.43779809,99923.0,99922.0,0.008]
[1733619229414,0.43779809,99923.0,99922.0,0.25038375]
[1733619229415,0.79859809,99923.0,99922.0,0.25038375]
[1733619229818,0.79859809,99923.0,99922.0,0.01112722]
[1733619232224,0.79859809,99923.0,99922.0,0.00612722]
[1733619232417,0.79859809,99923.0,99922.0,0.01112722]
[1733619233019,0.88846152,99923.0,99922.0,0.01112722]
[1733619234314,0.79859809,99923.0,99922.0,0.01112722]
[1733619234921,0.88846152,99923.0,99922.0,0.01112722]
[1733619235321,0.79859809,99923.0,99922.0,0.01112716]
[1733619235826,0.79859809,99923.0,99922.0,0.01112714]
[1733619236423,0.79859809,99923.0,99922.0,0.008]
[1733619236822,0.94838369,99923.0,99922.0,0.008]
[1733619237224,0.84723529,99923.0,99922.0,0.008]
[1733619240729,0.79859809,99923.0,99922.0,0.008]
[1733619240930,0.84723618,99923.0,99922.0,0.008]
[1733619241130,0.84723665,99923.0,99922.0,0.008]
[1733619241521,0.79859809,99923.0,99922.0,0.008]
[1733619242528,0.84723674,99923.0,99922.0,0.008]
[1733619243133,0.034995,99919.0,99918.0,0.00150119]
[1733619243936,0.034995,99918.0,99907.0,0.17938602]
[1733619244231,0.3608,99908.0,99905.0,0.17938602]
[1733619244426,0.3608,99908.0,99898.0,0.0325]
[1733619244427,0.035,99903.0,99902.0,0.23925653]
[1733619244621,0.035,99905.0,99902.0,0.00312774]
[1733619244825,0.395799,99906.0,99903.0,0.18239475]
[1733619245022,0.035,99904.0,99903.0,0.17926701]
[1733619245238,0.035,99904.0,99903.0,0.18239476]
[1733619245432,0.035,99904.0,99903.0,0.00312775]
[1733619245834,0.035001,99901.0,99900.0,0.23925653]
[1733619246132,0.035001,99902.0,99900.0,0.17926414]
[1733619246328,0.001,99903.0,99900.0,0.17926414]
[1733619246528,0.40656706,99906.0,99900.0,0.17926414]
[1733619246529,0.035001,99901.0,99900.0,0.17926414]
[1733619246834,0.40656706,99906.0,99903.0,0.008]
[1733619246835,0.036,99904.0,99903.0,0.008]
[1733619247137,0.036,99904.0,99903.0,0.01112781]
[1733619248034,0.037,99904.0,99903.0,0.01712781]
[1733619248233,0.036,99904.0,99903.0,0.00912781]
[1733619249036,0.037,99904.0,99903.0,0.01812781]
[1733619251440,0.037,99904.0,99903.0,0.01812757]
[1733619253845,0.037,99904.0,99903.0,0.05312757]
[1733619254541,0.037,99904.0,99903.0,0.23239787]
[1733619254747,0.037,99904.0,99903.0,0.05312738]
[1733619255440,0.002,99904.0,99903.0,0.05312738]
[1733619255634,0.037,99904.0,99903.0,0.29238391]
[1733619255831,0.037,99904.0,99903.0,0.05312738]
[1733619259853,0.037,99904.0,99903.0,0.05312733]
[1733619263157,0.037,99904.0,99903.0,0.05]
[1733619263463,0.037,99904.0,99903.0,0.05312733]
[1733619266269,0.002,99904.0,99903.0,0.05312733]
[1733619267269,0.035,99905.0,99904.0,0.035]
[1733619267466,0.035,99905.0,99904.0,0.3373579]
[1733619267670,0.035,99905.0,99904.0,0.03812733]
[1733619267874,0.035,99905.0,99904.0,0.3373579]
[1733619268274,0.035,99905.0,99904.0,0.03812733]
[1733619268479,0.035,99905.0,99904.0,0.3373579]
[1733619268674,0.036,99905.0,99904.0,0.3463579]
[1733619269373,0.036,99905.0,99904.0,0.68333957]
[1733619269881,0.037,99905.0,99904.0,0.35238494]
[1733619271078,0.037,99905.0,99904.0,0.68961709]
[1733619271279,0.037,99905.0,99904.0,0.35238494]
[1733619271578,0.037,99905.0,99904.0,0.68964474]
[1733619271778,0.037,99905.0,99904.0,0.68974404]
[1733619272282,0.037,99905.0,99904.0,0.3873591]
[1733619272574,0.037,99905.0,99904.0,0.39048636]
[1733619274780,0.037,99905.0,99904.0,0.68982936]
[1733619275378,0.037,99905.0,99904.0,0.68982939]
[1733619275579,0.037,99905.0,99904.0,0.68993619]
[1733619277586,0.037,99905.0,99904.0,0.35247029]
[1733619278582,0.037,99905.0,99904.0,0.68998424]
[1733619279380,0.037,99905.0,99904.0,0.39064124]
[1733619280490,0.037,99905.0,99904.0,0.39067972]
[1733619281387,0.037,99905.0,99904.0,0.2328057]
[1733619282283,0.037,99905.0,99904.0,0.22967841]
[1733619282586,0.037,99905.0,99904.0,0.2328057]
[1733619283377,0.037,99905.0,99904.0,0.05312729]
[1733619283378,0.18662223,99905.0,99904.0,0.05312729]
[1733619284479,0.037,99905.0,99904.0,0.05312729]
[1733619284689,0.18706208,99905.0,99904.0,0.05312729]
[1733619285188,0.037,99905.0,99904.0,0.05312729]
[1733619286077,0.037,99905.0,99904.0,0.05]
[1733619286078,0.08564028,99905.0,99904.0,0.05]
[1733619286281,0.08564028,99905.0,99904.0,0.05312729]
[1733619288294,0.037,99905.0,99904.0,0.05312729]
[1733619288685,0.002,99905.0,99904.0,0.05312729]
[1733619289381,0.002,99905.0,99904.0,0.39100297]
[1733619290983,0.09204774,99905.0,99904.0,0.39100297]
[1733619291683,0.037,99905.0,99904.0,0.39100297]
[1733619292884,0.12704774,99905.0,99904.0,0.39100297]
[1733619293085,0.037,99905.0,99904.0,0.39100297]
[1733619296387,0.037,99905.0,99904.0,0.29283723]
[1733619296783,0.18707957,99905.0,99904.0,0.05312729]
[1733619297185,0.08564204,99905.0,99904.0,0.01812729]
[1733619297393,0.11844204,99905.0,99904.0,0.01812729]
[1733619297694,0.29819951,99905.0,99904.0,0.01812729]
[1733619298602,0.11844204,99905.0,99904.0,0.01812729]
[1733619303402,0.11844527,99905.0,99904.0,0.01812729]
[1733619304602,0.0698,99905.0,99904.0,0.01812729]
[1733619305299,0.0698,99905.0,99904.0,0.015]
[1733619305509,0.0698,99905.0,99904.0,0.01812754]
[1733619308106,0.0698,99905.0,99904.0,0.01812752]
[1733619311496,0.11844386,99905.0,99904.0,0.01812752]
[1733619312294,0.0698,99905.0,99904.0,0.01812752]
[1733619312594,0.11844373,99905.0,99904.0,0.01812752]
[1733619313108,0.11844545,99905.0,99904.0,0.01812752]
[1733619315608,0.11844545,99905.0,99904.0,0.01812759]
[1733619317008,0.20059315,99905.0,99904.0,0.05312759]
[1733619317198,0.002,99905.0,99904.0,0.05312759]
[1733619317400,0.002,99905.0,99904.0,0.29684291]
[1733619317605,0.002,99905.0,99904.0,0.11722759]
[1733619317899,0.002,99905.0,99904.0,0.35693753]
[1733619319513,0.01024805,99906.0,99904.0,0.41793182]
[1733619319704,0.39631801,99911.0,99905.0,0.33883182]
[1733619319910,0.395798,99911.0,99910.0,0.034998]
[1733619320110,0.395798,99911.0,99910.0,0.03812559]
[1733619321807,0.396798,99911.0,99910.0,0.03812559]
[1733619322208,0.395798,99911.0,99910.0,0.03812559]
[1733619322414,0.395798,99911.0,99910.0,0.04712559]
[1733619322415,0.40688564,99911.0,99910.0,0.04712559]
[1733619323209,0.40688564,99911.0,99910.0,0.05212559]
[1733619324818,0.13603012,99911.0,99910.0,0.29139236]
[1733619325718,0.04608564,99911.0,99910.0,0.05212559]
[1733619333824,0.19603334,99911.0,99910.0,0.05212559]
[1733619334011,0.01108764,99911.0,99910.0,0.05212559]
[1733619334215,0.001,99911.0,99910.0,0.05212559]
[1733619334621,0.001,99911.0,99910.0,0.38646949]
[1733619335019,0.001,99911.0,99910.0,0.74523127]
[1733619336218,0.001,99911.0,99910.0,1.10603127]
[1733619336622,0.001,99911.0,99910.0,0.74726949]
[1733619339625,0.001,99911.0,99910.0,0.74726857]
[1733619339922,0.01,99931.0,99919.0,0.034995]
[1733619340118,0.01,99931.0,99910.0,1.01227057]
[1733619340119,0.15300164,99940.0,99939.0,0.034988]
[1733619340325,0.005,99948.0,99939.0,0.00312667]
[1733619340326,0.1248941,99942.0,99939.0,0.00312667]
[1733619340624,0.1248941,99942.0,99940.0,0.00312667]
[1733619340830,0.1248941,99942.0,99927.0,0.3608]
[1733619340831,0.04520207,99942.0,99941.0,0.00312667]
[1733619342022,0.04520207,99942.0,99941.0,0.03811367]
[1733619342638,0.04720207,99942.0,99941.0,0.03811367]
[1733619342823,0.04920207,99942.0,99941.0,0.03811367]
[1733619343129,0.05020207,99942.0,99941.0,0.03811318]
[1733619344625,0.04820207,99942.0,99941.0,0.03811318]
[1733619345128,0.04520207,99942.0,99941.0,0.03811318]
[1733619346226,0.04520207,99942.0,99941.0,0.034987]
[1733619346429,0.04520207,99942.0,99941.0,0.03811325]
[1733619346628,0.01021507,99942.0,99941.0,0.03811325]
[1733619346820,0.034985,99947.0,99941.0,0.03811325]
[1733619346821,0.034985,99947.0,99946.0,0.034985]
[1733619347027,0.034985,99947.0,99946.0,0.03811125]
[1733619347434,0.3608,99948.0,99947.0,0.034985]
[1733619347735,0.3608,99948.0,99947.0,0.03811125]
[1733619348129,0.37107004,99948.0,99947.0,0.03811125]
[1733619348937,0.37207004,99948.0,99947.0,0.03811125]
[1733619349330,0.37207004,99948.0,99947.0,0.034985]
[1733619349528,0.01327004,99948.0,99947.0,0.034985]
[1733619349928,0.16293137,99948.0,99947.0,0.034985]
[1733619350641,0.01327004,99948.0,99947.0,0.034985]
[1733619351040,0.16268053,99948.0,99947.0,0.034985]
[1733619351239,0.01327004,99948.0,99947.0,0.034985]
[1733619351646,0.003,99948.0,99947.0,0.034985]
[1733619354349,0.003,99948.0,99947.0,0.03811089]
[1733619354741,0.003,99948.0,99947.0,0.034985]
[1733619355041,0.002,99948.0,99947.0,0.03911098]
[1733619355440,9.75e-05,99950.0,99949.0,0.034984]
[1733619355640,9.75e-05,99950.0,99949.0,0.395784]
[1733619356644,0.11948067,99956.0,99955.0,0.034982]
[1733619356844,0.14941049,99962.0,99961.0,0.03498]
[1733619357145,0.00991363,99968.0,99967.0,0.034978]
[1733619357446,0.1544165,99978.0,99977.0,0.034974]
[1733619357749,0.034974,99978.0,99977.0,0.034974]
[1733619358151,0.1544165,99978.0,99977.0,0.034974]
[1733619358442,0.034974,99978.0,99977.0,0.034974]
[1733619358648,0.043974,99978.0,99977.0,0.035974]
[1733619359255,0.05975035,99978.0,99977.0,0.036974]
[1733619360869,0.05375035,99978.0,99977.0,0.035974]
[1733619361268,0.05375035,99978.0,99977.0,0.034974]
[1733619361269,0.04475035,99978.0,99977.0,0.034974]
[1733619363662,0.04475035,99978.0,99977.0,0.03809918]
[1733619364065,0.04475035,99978.0,99977.0,0.034974]
[1733619364764,0.00977635,99978.0,99977.0,0.034974]
[1733619364957,0.36089492,99980.0,99970.0,8.121e-05]
[1733619365165,0.42398946,99980.0,99979.0,0.034974]
[1733619365369,0.36089492,99980.0,99979.0,0.034974]
[1733619365869,9.492e-05,99980.0,99979.0,0.034974]
[1733619366167,9.492e-05,99980.0,99979.0,0.03809908]
[1733619367662,0.06309454,99990.0,99989.0,0.03497]